{"text_format":"3","workbook":"xlsx","n_sheets":1,"sheets":["Spese"],"not_rendered":{"defined_names":1},"read":"whole","date_system":"1900"}

{"sheet":"Spese","index":0,"n_rows":30,"n_cols":6,"rows_kept":30,"merged":[[0,1,0,2],[1,1,1,2]]}
[null,"BUDGET DI SPESA",{"$nulls":3},{"$f":"NOW()","v":"2012-05-28T17:09:32.100"}]
[null,"Nome società"]
[]
[null,"Personale","Dati finanziari","Importo effettivo","Differenza (€)","Differenza (%)"]
[null,"Ufficio",null,null,{"$f":"SUM(Table1[Dati finanziari]-Table1[Importo effettivo])","v":0},{"$f":"IFERROR(SUM(Table1[Differenza (€)]/Table1[Dati finanziari]),\"\")","v":""}]
[null,"Negozio",null,null,{"$f":"SUM(Table1[Dati finanziari]-Table1[Importo effettivo])","v":0},{"$f":"IFERROR(SUM(Table1[Differenza (€)]/Table1[Dati finanziari]),\"\")","v":""}]
[null,"Venditori",null,null,{"$f":"SUM(Table1[Dati finanziari]-Table1[Importo effettivo])","v":0},{"$f":"IFERROR(SUM(Table1[Differenza (€)]/Table1[Dati finanziari]),\"\")","v":""}]
[null,"Altro",null,null,{"$f":"SUM(Table1[Dati finanziari]-Table1[Importo effettivo])","v":0},{"$f":"IFERROR(SUM(Table1[Differenza (€)]/Table1[Dati finanziari]),\"\")","v":""}]
[]
[null,"Spese operative","Dati finanziari","Importo effettivo","Differenza (€)","Differenza (%)"]
[null,"Pubblicità",null,null,{"$f":"SUM(Table2[Dati finanziari]-Table2[Importo effettivo])","v":0},{"$f":"IFERROR(SUM(Table2[Differenza (€)]/Table2[Dati finanziari]),\"\")","v":""}]
[null,"Debiti",null,null,{"$f":"SUM(Table2[Dati finanziari]-Table2[Importo effettivo])","v":0},{"$f":"IFERROR(SUM(Table2[Differenza (€)]/Table2[Dati finanziari]),\"\")","v":""}]
[null,"Indennità",null,null,{"$f":"SUM(Table2[Dati finanziari]-Table2[Importo effettivo])","v":0},{"$f":"IFERROR(SUM(Table2[Differenza (€)]/Table2[Dati finanziari]),\"\")","v":""}]
[null,"Forniture",null,null,{"$f":"SUM(Table2[Dati finanziari]-Table2[Importo effettivo])","v":0},{"$f":"IFERROR(SUM(Table2[Differenza (€)]/Table2[Dati finanziari]),\"\")","v":""}]
[null,"Affrancatura",null,null,{"$f":"SUM(Table2[Dati finanziari]-Table2[Importo effettivo])","v":0},{"$f":"IFERROR(SUM(Table2[Differenza (€)]/Table2[Dati finanziari]),\"\")","v":""}]
[null,"Affitto o mutuo",null,null,{"$f":"SUM(Table2[Dati finanziari]-Table2[Importo effettivo])","v":0},{"$f":"IFERROR(SUM(Table2[Differenza (€)]/Table2[Dati finanziari]),\"\")","v":""}]
[null,"Spese di vendita",null,null,{"$f":"SUM(Table2[Dati finanziari]-Table2[Importo effettivo])","v":0},{"$f":"IFERROR(SUM(Table2[Differenza (€)]/Table2[Dati finanziari]),\"\")","v":""}]
[null,"Tasse",null,null,{"$f":"SUM(Table2[Dati finanziari]-Table2[Importo effettivo])","v":0},{"$f":"IFERROR(SUM(Table2[Differenza (€)]/Table2[Dati finanziari]),\"\")","v":""}]
[null,"Servizi",null,null,{"$f":"SUM(Table2[Dati finanziari]-Table2[Importo effettivo])","v":0},{"$f":"IFERROR(SUM(Table2[Differenza (€)]/Table2[Dati finanziari]),\"\")","v":""}]
[null,"Altro",null,null,{"$f":"SUM(Table2[Dati finanziari]-Table2[Importo effettivo])","v":0},{"$f":"IFERROR(SUM(Table2[Differenza (€)]/Table2[Dati finanziari]),\"\")","v":""}]
[null,"Assicurazione",null,null,{"$f":"SUM(Table2[Dati finanziari]-Table2[Importo effettivo])","v":0},{"$f":"IFERROR(SUM(Table2[Differenza (€)]/Table2[Dati finanziari]),\"\")","v":""}]
[null,"Interesse",null,null,{"$f":"SUM(Table2[Dati finanziari]-Table2[Importo effettivo])","v":0},{"$f":"IFERROR(SUM(Table2[Differenza (€)]/Table2[Dati finanziari]),\"\")","v":""}]
[null,"Telefono",null,null,{"$f":"SUM(Table2[Dati finanziari]-Table2[Importo effettivo])","v":0},{"$f":"IFERROR(SUM(Table2[Differenza (€)]/Table2[Dati finanziari]),\"\")","v":""}]
[null,"Manutenzione e riparazioni",null,null,{"$f":"SUM(Table2[Dati finanziari]-Table2[Importo effettivo])","v":0},{"$f":"IFERROR(SUM(Table2[Differenza (€)]/Table2[Dati finanziari]),\"\")","v":""}]
[null,"Spese legali",null,null,{"$f":"SUM(Table2[Dati finanziari]-Table2[Importo effettivo])","v":0},{"$f":"IFERROR(SUM(Table2[Differenza (€)]/Table2[Dati finanziari]),\"\")","v":""}]
[null,"Ammortamento",null,null,{"$f":"SUM(Table2[Dati finanziari]-Table2[Importo effettivo])","v":0},{"$f":"IFERROR(SUM(Table2[Differenza (€)]/Table2[Dati finanziari]),\"\")","v":""}]
[null,"Spedizioni",null,null,{"$f":"SUM(Table2[Dati finanziari]-Table2[Importo effettivo])","v":0},{"$f":"IFERROR(SUM(Table2[Differenza (€)]/Table2[Dati finanziari]),\"\")","v":""}]
[null,"Magazzino",null,null,{"$f":"SUM(Table2[Dati finanziari]-Table2[Importo effettivo])","v":0},{"$f":"IFERROR(SUM(Table2[Differenza (€)]/Table2[Dati finanziari]),\"\")","v":""}]
[null,"Altro",null,null,{"$f":"SUM(Table2[Dati finanziari]-Table2[Importo effettivo])","v":0},{"$f":"IFERROR(SUM(Table2[Differenza (€)]/Table2[Dati finanziari]),\"\")","v":""}]
[null,"Totale spese",{"$f":"SUM(Table1[Dati finanziari],Table2[Dati finanziari])","v":0},{"$f":"SUM(Table1[Importo effettivo],Table2[Importo effettivo])","v":0},{"$f":"SUM(Table1[Differenza (€)],Table2[Differenza (€)])","v":0},{"$f":"IFERROR(SUM(Table2[[#Totals],[Differenza (€)]]/Table2[[#Totals],[Dati finanziari]]),\"\")","v":""}]